bitfinex-derivatives/quotes_ETHF0:USTF0_20240905
["timestamp","ask_amount","ask_price","bid_price","bid_amount"]
[1725499737564,0.77727268,2456.9,2456.6,3.2078]
[1725499737565,0.28493,2456.8,2456.6,3.2078]
[1725499738664,0.77727268,2456.9,2456.6,3.49276]
[1725499738866,0.28494,2456.7,2456.6,3.2078]
[1725499739461,0.77727268,2456.9,2456.6,3.2078]
[1725499739462,0.28494,2456.8,2456.6,3.2078]
[1725499739662,0.77727268,2456.9,2456.7,1.60494]
[1725499739869,0.77727268,2456.9,2456.7,1.98314]
[1725499741163,1.06219268,2456.9,2456.7,1.98314]
[1725499741470,1.06219268,2456.9,2456.7,1.32]
[1725499742263,0.28493,2456.8,2456.7,1.32]
[1725499742860,1.06220268,2456.9,2456.7,1.32]
[1725499743658,0.77727268,2456.9,2456.5,3.2078]
[1725499743953,0.28494,2456.8,2456.5,4.81276]
[1725499745250,0.77727268,2456.9,2456.5,4.81276]
[1725499745456,0.28495,2456.7,2456.5,4.81276]
[1725499745661,0.3932,2456.6,2456.5,4.81276]
[1725499745859,0.7618,2456.6,2456.5,4.81276]
[1725499746167,1.04676,2456.6,2456.5,3.2078]
[1725499747653,0.7618,2456.6,2456.3,1.32]
[1725499747858,0.28498,2456.4,2456.2,6.86983237]
[1725499748166,0.28498,2456.4,2456.2,1.32]
[1725499748364,0.3665,2456.3,2456.2,1.32]
[1725499748565,0.3665,2456.3,2456.2,1.86834681]
[1725499748967,0.3665,2456.3,2456.1,1.07394135]
[1725499749164,0.3903,2456.2,2456.1,0.00610898]
[1725499749366,0.3903,2456.2,2456.1,0.29111898]
[1725499749760,0.3903,2456.2,2456.1,0.8394832]
[1725499750363,0.3903,2456.2,2456.1,1.90731557]
[1725499751662,0.3903,2456.2,2456.1,1.90731518]
[1725499752065,0.6753,2456.2,2456.1,1.62230518]
[1725499752266,0.6753,2456.2,2456.1,0.55447281]
[1725499752267,0.3903,2456.2,2456.1,0.55447281]
[1725499752668,0.3903,2456.2,2456.1,0.00610898]
[1725499752868,0.3903,2456.2,2456.1,0.55449541]
[1725499753062,0.3665,2456.3,2456.1,0.83950541]
[1725499753262,0.3665,2456.3,2456.2,2.15337173]
[1725499754068,0.3665,2456.3,2456.2,1.86837173]
[1725499754282,0.3665,2456.3,2456.2,3.2212041]
[1725499754873,0.3665,2456.3,2456.2,6.4290041]
[1725499755170,0.3665,2456.3,2456.2,5.36117173]
[1725499755367,0.7381,2456.5,2456.3,0.28499]
[1725499755570,1.1108,2456.5,2456.4,2.15330505]
[1725499755874,0.3727,2456.5,2456.4,3.32437232]
[1725499756267,0.3727,2456.5,2456.4,3.32431875]
[1725499757470,0.3727,2456.5,2456.4,3.60929875]
[1725499758568,0.7423,2456.8,2456.6,0.28495]
[1725499758775,0.7423,2456.8,2456.7,6.52503899]
[1725499758978,0.7423,2456.8,2456.7,6.88483899]
[1725499759277,0.7423,2456.8,2456.7,6.33656751]
[1725499759479,0.7423,2456.8,2456.7,6.88474264]
[1725499760379,0.7423,2456.8,2456.7,2.61067513]
[1725499761180,0.7423,2456.8,2456.7,2.61075022]
[1725499761371,0.7423,2456.8,2456.7,3.67701773]
[1725499761569,0.00407268,2456.9,2456.7,3.67701773]
[1725499761793,0.00407268,2456.9,2456.8,2.96986821]
[1725499761966,0.00407268,2456.9,2456.8,0.83318022]
[1725499762472,0.00407268,2456.9,2456.8,1.8988515]
[1725499763076,0.095,2457.4,2457.2,0.28489]
[1725499763272,0.4828,2457.5,2457.3,5.2791]
[1725499763273,0.7463,2457.5,2457.3,5.2791]
[1725499763570,0.7463,2457.5,2457.3,5.6419]
[1725499763777,0.7463,2457.5,2457.4,1.32]
[1725499764885,0.7463,2457.5,2457.3,4.3219]
[1725499766077,0.7463,2457.5,2457.3,4.60677]
[1725499766275,0.3585,2457.5,2457.3,1.1141]
[1725499768079,0.3585,2457.5,2457.3,0.3711]
[1725499768579,0.3585,2457.5,2457.0,3.4927]
[1725499768784,0.3585,2457.5,2457.1,0.2849]
[1725499768785,0.64336,2457.5,2457.1,0.2849]
[1725499768980,0.64336,2457.5,2457.1,1.6049]
[1725499769685,0.28486,2457.4,2457.1,1.6049]
[1725499770384,0.64336,2457.5,2457.1,1.6049]
[1725499771674,0.64336,2457.5,2457.2,0.28489]
[1725499772287,0.3585,2457.5,2457.3,0.28487]
[1725499772475,0.3585,2457.5,2457.3,1.32]
[1725499772883,0.3585,2457.5,2457.3,1.6887]
[1725499775098,0.64335,2457.5,2457.3,1.6887]
[1725499777198,0.64335,2457.5,2457.3,1.32]
[1725499777692,0.28486,2457.4,2457.2,3.2078]
[1725499777996,0.28486,2457.4,2457.2,0.28489]
[1725499778298,0.28486,2457.4,2457.1,1.99009]
[1725499778499,0.28486,2457.4,2457.2,0.28488]
[1725499778794,0.3586,2457.3,2457.2,0.28488]
[1725499778997,0.64336,2457.5,2457.3,0.28487]
[1725499781689,0.3585,2457.5,2457.3,0.28487]
[1725499781887,0.64335,2457.5,2457.3,0.28487]
[1725499783192,0.3585,2457.5,2457.3,0.28487]
[1725499783893,0.64335,2457.5,2457.3,0.28487]
[1725499788409,0.64335,2457.5,2457.1,0.28489]
[1725499788410,0.28489,2457.3,2457.1,0.28489]
[1725499788599,0.28489,2457.3,2457.1,0.64679]
[1725499789103,0.3558,2457.2,2457.1,0.64679]
[1725499793497,0.28486,2457.5,2457.1,0.3619]
[1725499793797,0.3702,2457.5,2457.4,0.28486]
[1725499794605,0.65506,2457.5,2457.3,0.28487]
[1725499796011,0.28486,2457.4,2457.2,4.81268]
[1725499796196,0.65506,2457.5,2457.3,0.28487]
[1725499796402,0.28486,2457.4,2457.3,0.28487]
[1725499797101,0.28486,2457.4,2457.2,3.49268]
[1725499798099,0.3702,2457.5,2457.2,3.2078]
[1725499798100,0.28487,2457.3,2457.2,3.2078]
[1725499798298,0.28487,2457.3,2457.1,1.60489]
[1725499798501,0.3656,2457.2,2457.1,1.60489]
[1725499798702,0.3656,2457.2,2457.1,2.15296021]
[1725499798906,0.3656,2457.2,2457.1,1.60489]
[1725499799208,0.3656,2457.2,2457.1,2.15295332]
[1725499800504,0.3656,2457.2,2457.1,1.86806332]
[1725499800505,0.65049,2457.2,2457.1,1.86806332]
[1725499800705,1.39869,2457.2,2457.1,1.32]
[1725499801103,0.28491,2457.0,2456.8,5.54733511]
[1725499801298,5.1834,2457.2,2456.8,5.54733511]
[1725499801299,1.03309,2457.2,2456.9,3.2078]
[1725499801609,0.67749,2457.2,2457.0,0.83317166]
[1725499801808,0.67749,2457.2,2457.0,0.28491]
[1725499802413,0.095,2457.4,2457.1,0.54822255]
[1725499802612,0.3578,2457.4,2457.2,1.20090255]
[1725499802804,0.3578,2457.4,2457.2,0.65268]
[1725499803111,0.3578,2457.4,2457.3,0.28487]
[1725499803309,0.3578,2457.4,2457.3,1.57206485]
[1725499804019,0.3578,2457.4,2457.3,0.739]
[1725499804211,0.3578,2457.4,2457.3,1.28719972]
[1725499804515,0.3578,2457.4,2457.3,1.57206972]
[1725499805807,0.3578,2457.4,2457.3,1.28719972]
[1725499806207,0.3578,2457.4,2457.3,2.35260483]
[1725499807011,0.3578,2457.4,2457.3,2.63747483]
[1725499807217,0.3578,2457.4,2457.3,2.62282274]
[1725499807411,0.095,2457.9,2457.3,4.74386867]
[1725499807719,0.095,2457.9,2457.6,1.06738935]
[1725499807720,0.761,2457.8,2457.6,1.06738935]
[1725499807907,1.04582,2457.8,2457.7,0.54818068]
[1725499808318,5.11462,2457.8,2457.7,0.54818068]
[1725499808713,4.8298,2457.8,2457.7,0.54818068]
[1725499809216,0.28479,2458.1,2457.7,1.86818068]
[1725499809414,1.42829,2458.1,2457.9,1.06738935]
[1725499809605,1.42829,2458.1,2458.0,0.54818068]
[1725499810008,5.49629,2458.1,2458.0,0.54818068]
[1725499810215,0.28479,2458.0,2457.8,1.06738935]
[1725499810514,0.28479,2458.0,2457.9,0.5481123]
[1725499810816,0.28479,2458.0,2457.9,0.54811292]
[1725499811017,0.28479,2458.0,2457.9,1.09622586]
[1725499811607,0.28479,2458.0,2457.9,1.6443398]
[1725499812316,0.28479,2458.0,2457.9,1.09622586]
[1725499812515,0.28479,2458.0,2457.9,1.64436101]
[1725499814335,0.28479,2458.0,2457.9,1.6443422]
[1725499814714,0.28479,2458.0,2457.9,1.09622586]
[1725499817618,0.28482,2457.9,2457.7,1.7087]
[1725499817810,0.28482,2457.9,2457.7,1.99353]
[1725499818216,0.2848,2458.0,2457.7,1.99353]
[1725499819917,0.28481,2457.9,2457.7,1.7087]
[1725499820418,0.3568,2457.8,2457.7,1.99353]
[1725499820719,0.3568,2457.8,2457.7,2.54166962]
[1725499821118,0.2848,2458.0,2457.7,2.54166962]
[1725499821318,0.6697,2458.0,2457.7,5.20133]
[1725499821526,0.6697,2458.0,2457.8,0.28482]
[1725499821717,0.095,2458.4,2457.9,0.3567]
[1725499821919,0.37973,2458.6,2458.1,1.32]
[1725499822119,0.28473,2458.6,2458.3,1.60475]
[1725499822424,0.28473,2458.6,2458.4,0.3567]
[1725499822622,0.3849,2458.7,2458.4,1.00665]
[1725499822825,0.66962,2458.7,2458.5,1.32]
[1725499823124,0.3849,2458.7,2458.6,0.3811]
[1725499823329,0.3566,2459.0,2458.6,1.98582]
[1725499823526,0.3566,2459.0,2458.8,1.32]
[1725499823527,1.0974,2459.0,2458.8,1.32]
[1725499823721,1.02618,2459.0,2458.8,1.32]
[1725499824219,0.66958,2459.0,2458.8,1.32]
[1725499824724,0.28468,2459.0,2458.8,1.32]
[1725499824932,0.28468,2459.0,2458.8,1.7061]
[1725499825526,0.28467,2459.1,2458.8,1.7061]
[1725499825926,0.28467,2459.1,2458.8,0.7708]
[1725499827028,0.28468,2459.0,2458.8,0.7708]
[1725499827434,0.7137,2459.2,2458.7,0.00610898]
[1725499827625,0.6662,2458.9,2458.7,0.00610898]
[1725499828027,0.2847,2458.9,2458.7,0.00610898]
[1725499830726,0.28468,2459.0,2458.7,0.29081898]
[1725499830935,0.66617,2459.1,2458.7,0.29081898]
[1725499831125,0.66617,2459.1,2458.8,0.7295]
[1725499831935,4.20616,2459.2,2458.8,1.0142]
[1725499832232,3.5649,2459.2,2458.9,0.28469]
[1725499832533,3.5649,2459.2,2458.9,3.44469]
[1725499832727,3.2078,2459.2,2458.9,3.44469]
[1725499833328,0.28465,2459.3,2458.9,6.65249]
[1725499834336,0.28465,2459.3,2458.9,3.44469]
[1725499834632,0.28465,2459.3,2458.9,6.65249]
[1725499835232,0.28465,2459.3,2458.9,6.3678]
[1725499835430,0.28465,2459.3,2458.9,6.65248]
[1725499836232,0.66274,2459.4,2459.0,0.28468]
[1725499836432,0.66274,2459.4,2459.1,0.3574]
[1725499836633,0.28464,2459.4,2459.2,0.3896]
[1725499836843,0.28464,2459.4,2459.2,0.7606]
[1725499837032,0.3563,2459.5,2459.2,0.7606]
[1725499837033,0.3563,2459.5,2459.3,3.16]
[1725499837443,0.28461,2459.6,2459.3,3.16]
[1725499837738,0.28462,2459.5,2459.3,3.16]
[1725499838131,0.095,2460.1,2459.3,3.16]
[1725499838441,0.095,2460.1,2459.8,3.44458]
[1725499838442,0.4792,2460.1,2459.8,3.44458]
[1725499838744,0.3842,2460.1,2459.9,0.7166]
[1725499838929,3.49235,2460.2,2459.9,0.7166]
[1725499839132,3.2078,2460.2,2459.9,1.1063]
[1725499839431,3.2078,2460.2,2460.0,0.28456]
[1725499840231,3.2078,2460.2,2460.1,0.28455]
[1725499840630,0.37951,2460.5,2460.2,0.28454]
[1725499840834,0.28451,2460.5,2460.2,0.28454]
[1725499841139,0.3685,2460.6,2460.4,0.28451]
[1725499841338,0.3685,2460.6,2460.3,0.28452]
[1725499841339,0.28449,2460.6,2460.3,0.28452]
[1725499841631,0.28449,2460.7,2460.4,0.66231]
[1725499841935,0.65298,2460.8,2460.4,1.05201]
[1725499842138,0.65298,2460.8,2460.5,0.2845]
[1725499842139,0.3685,2460.8,2460.5,0.2845]
[1725499842335,0.28447,2460.8,2460.5,0.2845]
[1725499842537,0.63936,2460.9,2460.6,0.28449]
[1725499842729,0.28446,2460.9,2460.5,3.4445]
[1725499842931,0.28445,2461.0,2460.6,0.28449]
[1725499843340,0.28445,2461.0,2460.5,3.5243]
[1725499843341,0.28445,2461.0,2460.7,0.28448]
[1725499843836,0.28445,2461.0,2460.6,0.28449]
[1725499844239,3.5645,2461.1,2460.8,0.28446]
[1725499844434,3.5645,2461.1,2460.7,3.16]
[1725499844435,3.84894,2461.1,2460.7,3.44447]
[1725499844837,3.5645,2461.1,2460.8,0.28447]
[1725499845141,0.37942,2461.3,2460.9,3.44446]
[1725499845344,0.28442,2461.3,2461.0,0.3856]
[1725499845544,0.65381,2461.4,2461.0,0.67004]
[1725499845846,0.095,2461.7,2461.3,3.16]
[1725499846140,0.095,2461.9,2461.5,3.44438]
[1725499846335,0.4644,2462.1,2461.8,0.28434]
[1725499846533,0.3694,2462.1,2462.0,3.16]
[1725499846753,0.65372,2462.1,2462.0,3.16]
[1725499847134,0.3694,2462.1,2462.0,3.16]
[1725499847334,0.2843,2462.3,2462.0,3.16]
[1725499848140,3.87808,2462.5,2462.0,3.16]
[1725499848441,0.67028,2462.5,2462.0,3.16]
[1725499848636,0.28429,2462.4,2462.0,3.16]
[1725499849235,0.386,2462.5,2462.0,3.16]
[1725499849434,0.28429,2462.4,2462.0,3.16]
[1725499849636,0.386,2462.5,2462.0,3.16]
[1725499849847,0.28434,2461.9,2461.8,3.16]
[1725499850238,0.28436,2461.8,2461.5,3.16609632]
[1725499850544,3.91858,2462.2,2461.5,3.16609632]
[1725499850545,0.71081,2462.1,2461.5,3.16609632]
[1725499850745,0.71081,2462.1,2461.5,0.00609632]
[1725499850943,0.28437,2461.7,2461.5,0.00609632]
[1725499851339,0.28438,2461.6,2461.5,0.00609632]
[1725499851944,4.0624,2461.6,2461.5,0.00609632]
[1725499852149,4.34678,2461.6,2461.5,0.00609632]
[1725499852941,11.05773,2461.6,2461.5,0.00609632]
[1725499853146,11.05773,2461.6,2461.3,3.2078]
[1725499853147,0.2844,2461.4,2461.3,3.2078]
[1725499853640,4.3476,2461.4,2461.3,3.2078]
[1725499854441,0.28442,2461.2,2461.1,0.00609632]
[1725499855046,5.05869,2461.2,2461.1,0.00609632]
[1725499855249,0.28449,2460.7,2460.5,3.16]
[1725499855748,0.80609,2461.1,2460.6,7.224]
[1725499855749,0.095,2461.1,2460.6,7.224]
[1725499855948,4.36362,2461.3,2461.0,3.16]
[1725499855949,4.34862,2461.3,2461.0,3.16]
[1725499856149,4.25362,2461.3,2461.0,3.16]
[1725499856339,3.49222,2461.3,2461.0,3.16]
[1725499856763,0.28443,2461.2,2461.0,3.16]
[1725499856943,0.28443,2461.2,2460.9,0.00609632]
[1725499857838,3.2078,2461.3,2460.9,0.29054632]
[1725499858041,3.2078,2461.3,2461.1,0.28443]
[1725499858346,3.2078,2461.3,2461.2,0.28442]
[1725499858750,3.2078,2461.3,2461.2,4.34762]
[1725499859447,0.3663,2461.6,2461.3,0.28441]
[1725499859645,0.3663,2461.6,2461.3,0.64881]
[1725499859849,0.00605411,2461.7,2461.4,3.4444]
[1725499862643,0.00605411,2461.7,2461.5,0.28439]
[1725499863250,0.00605411,2461.7,2461.4,3.16]
[1725499863450,0.29042411,2461.7,2461.4,3.16]
[1725499863851,0.28439,2461.5,2461.2,6.3678]
[1725499864157,0.28438,2461.6,2461.2,6.65222]
[1725499864453,0.28438,2461.6,2461.2,6.65221]
[1725499864650,0.2844,2461.5,2461.2,6.3678]
[1725499864851,0.2844,2461.4,2461.2,6.3678]
[1725499865062,0.28438,2461.6,2461.2,6.3678]
[1725499865452,0.28438,2461.6,2461.2,6.65222]
[1725499865958,0.28438,2461.6,2461.2,3.44442]
[1725499866557,0.2844,2461.4,2461.2,3.16]
[1725499866764,0.2844,2461.5,2461.2,3.16]
[1725499867063,0.71095,2461.6,2461.1,4.197]
[1725499867557,3.21385411,2461.7,2461.1,4.197]
[1725499867558,0.2844,2461.4,2461.1,4.197]
[1725499867758,0.2844,2461.4,2461.1,4.48143]
[1725499868645,0.2844,2461.4,2461.1,0.28443]
[1725499869758,0.2844,2461.4,2460.9,3.16609632]
[1725499869759,0.28441,2461.3,2461.0,0.28444]
[1725499869956,0.28441,2461.3,2460.9,3.45054632]
[1725499870860,0.28443,2461.2,2460.9,3.16609632]
[1725499871247,0.28443,2461.2,2460.9,3.45054632]
[1725499871649,0.28443,2461.2,2460.9,3.16609632]
[1725499872663,0.28443,2461.2,2460.9,3.45054632]
[1725499872956,3.2078,2461.1,2460.9,3.16609632]
[1725499873157,3.2078,2461.1,2460.9,0.00609632]
[1725499873158,0.28445,2461.0,2460.9,0.00609632]
[1725499873460,3.49224,2461.1,2460.9,0.00609632]
[1725499873654,0.3733,2461.3,2460.9,0.00609632]
[1725499873655,0.28445,2461.0,2460.9,0.00609632]
[1725499874246,0.28444,2461.1,2460.9,0.00609632]
[1725499874456,3.2078,2461.2,2460.9,0.00609632]
[1725499874457,0.28443,2461.2,2460.9,0.00609632]
[1725499874756,0.3733,2461.3,2461.0,0.28444]
[1725499875259,0.65771,2461.3,2460.9,3.45054632]
[1725499875557,0.65771,2461.3,2460.9,3.16609632]
[1725499875758,0.65771,2461.3,2461.0,0.28444]
[1725499876757,0.28441,2461.3,2461.0,0.28444]
[1725499877157,3.85511,2461.4,2461.0,0.28445]
[1725499877459,0.28441,2461.3,2461.0,0.28445]
[1725499878654,0.3629,2461.4,2461.1,3.16]
[1725499878962,0.66562411,2461.7,2461.3,0.2844]
[1725499879161,0.66562411,2461.7,2461.4,0.3922]
[1725499880053,0.28438,2461.6,2461.4,0.3922]
[1725499881164,0.28443,2461.2,2460.9,3.16609632]
[1725499881458,0.28443,2461.1,2460.9,3.16609632]
[1725499881667,0.28443,2461.2,2460.9,3.16609632]
[1725499881869,3.3028,2461.6,2460.9,3.16609632]
[1725499881870,0.28444,2461.1,2460.9,3.16609632]
[1725499882061,0.28445,2461.0,2460.9,0.00609632]
[1725499884657,0.99557,2461.0,2460.9,0.00609632]
[1725499886865,5.05877,2461.0,2460.9,0.00609632]
[1725499887064,11.05877,2461.0,2460.9,0.00609632]
[1725499887468,0.28452,2460.4,2460.3,4.197]
[1725499887766,0.28453,2460.3,2460.2,3.5373]
[1725499887965,0.71127,2460.5,2459.8,1.06738935]
[1725499888158,0.71127,2460.5,2459.5,5.62910799]
[1725499888159,0.28457,2460.0,2459.6,3.16]
[1725499888356,0.28457,2459.9,2459.6,3.16]
[1725499888561,0.80633,2460.3,2459.6,3.45070632]
[1725499888562,0.29066632,2460.0,2459.6,3.45070632]
[1725499888859,0.00609632,2460.0,2459.9,0.28457]
[1725499889071,0.095,2460.3,2460.2,0.28454]
[1725499889386,0.37949,2460.7,2460.3,0.28452]
[1725499889559,0.28449,2460.7,2460.3,0.372]
[1725499889970,0.28449,2460.6,2460.3,0.372]
[1725499890172,0.00609632,2460.7,2460.4,0.28451]
[1725499890362,0.00609632,2460.7,2460.4,0.3641]
[1725499890858,0.2845,2460.5,2460.4,0.3641]
[1725499891061,0.2845,2460.5,2460.3,0.372]
[1725499891062,0.28451,2460.5,2460.3,0.372]
[1725499891258,0.2845,2460.6,2460.3,0.372]
[1725499891861,3.2078,2460.4,2460.3,0.372]
[1725499892470,0.28454,2460.2,2459.9,0.3909]
[1725499893862,0.3902,2460.3,2459.9,0.3909]
[1725499894066,3.49235,2460.1,2459.9,0.3909]
[1725499894468,3.49235,2460.1,2459.8,7.357]
[1725499895063,3.2078,2460.1,2459.8,7.357]
[1725499895772,0.28455,2460.2,2459.8,7.64158]
[1725499895773,3.49234,2460.2,2459.8,7.64158]
[1725499896579,0.7817,2460.3,2459.8,7.357]
[1725499896767,0.28455,2460.1,2459.8,4.197]
[1725499897270,3.2078,2459.9,2459.6,3.16609632]
[1725499897871,3.2078,2459.9,2459.6,3.45070632]
[1725499898074,3.2078,2459.9,2459.7,0.2846]
[1725499898375,0.28457,2460.0,2459.7,0.2846]
[1725499898581,3.49237,2460.0,2459.7,0.2846]
[1725499899076,3.49237,2460.0,2459.6,3.45069632]
[1725499899769,3.2078,2460.0,2459.9,0.28457]
[1725499900176,3.2078,2460.0,2459.9,4.34937]
[1725499900376,3.2078,2460.0,2459.9,5.11717]
[1725499900677,4.27403,2460.3,2459.9,5.11717]
[1725499900877,0.28454,2460.2,2460.0,0.3684]
[1725499902671,3.2078,2460.1,2460.0,0.3684]
[1725499903871,3.49235,2460.1,2460.0,0.3684]
[1725499904073,0.28455,2460.1,2460.0,0.3684]
[1725499904576,0.28455,2460.1,2459.7,0.66099]
[1725499904779,3.2078,2459.9,2459.7,0.66099]
[1725499905175,3.2078,2459.9,2459.7,0.3764]
[1725499905587,3.2078,2459.9,2459.7,0.66099]
[1725499905884,3.49235,2460.2,2459.8,0.28459]
[1725499906785,0.28455,2460.1,2459.7,0.66099]
[1725499907782,0.28456,2460.0,2459.7,0.66099]
[1725499908178,0.28458,2459.9,2459.7,0.3764]
[1725499908578,0.28457,2460.0,2459.7,0.3764]
[1725499911584,0.28458,2459.9,2459.7,0.3764]
[1725499912079,0.28457,2460.0,2459.7,0.3764]
[1725499912480,0.28457,2460.0,2459.7,0.661]
[1725499913884,0.28456,2460.1,2459.7,0.661]
[1725499914783,0.28455,2460.1,2459.7,0.66099]
[1725499914989,0.28455,2460.1,2459.8,0.3753]
[1725499915385,3.6008,2460.4,2459.8,0.3753]
[1725499915386,3.2078,2460.4,2459.8,0.3753]
[1725499915585,0.095,2460.5,2460.4,0.28452]
[1725499915785,3.21389632,2460.7,2460.5,0.2845]
[1725499915980,3.21389632,2460.7,2460.3,0.28453]
[1725499916181,3.49837632,2460.7,2460.3,0.28453]
[1725499916384,3.49837632,2460.7,2460.2,0.7624]
[1725499916385,3.21389632,2460.7,2460.4,0.64511]
[1725499917083,3.92511632,2460.7,2460.0,4.197]
[1725499917285,1.1223,2460.6,2460.0,4.5841]
[1725499917686,0.28452,2460.4,2460.0,4.5841]
[1725499918690,0.28451,2460.5,2460.0,4.5841]
[1725499918988,1.038,2460.6,2460.0,7.7441]
[1725499919189,1.038,2460.6,2460.1,0.28455]
[1725499919400,0.7535,2460.6,2460.1,0.28455]
[1725499919805,1.03799,2460.6,2460.1,0.28455]
[1725499921606,0.2845,2460.5,2460.0,7.7441]
[1725499921796,0.2845,2460.5,2460.0,8.02866]
[1725499921995,1.038,2460.6,2460.0,8.02866]
[1725499922996,0.28451,2460.5,2460.0,4.5841]
[1725499923405,0.28453,2460.3,2460.0,4.5841]
[1725499923804,0.3861,2460.2,2460.0,4.5841]
[1725499924106,0.28455,2460.1,2460.0,4.197]
[1725499924304,1.02385,2460.1,2459.6,0.00609632]
[1725499924497,0.28456,2460.0,2459.6,0.29070632]
[1725499924803,1.02386,2460.1,2459.6,0.29070632]
[1725499925314,1.02386,2460.1,2459.7,0.2846]
[1725499925510,1.02386,2460.1,2459.6,0.29069632]
[1725499926100,1.02386,2460.1,2459.7,0.54640059]
[1725499926310,0.7393,2460.1,2459.7,0.28459]
[1725499926702,1.02385,2460.1,2459.7,0.28459]
[1725499927009,0.7393,2460.1,2459.7,0.28459]
[1725499927206,1.02385,2460.1,2459.7,0.28459]
[1725499927907,1.02385,2460.1,2459.6,0.29069632]
[1725499928204,1.02385,2460.1,2459.7,0.54640063]
[1725499928406,1.02385,2460.1,2459.8,0.54640638]
[1725499928600,1.02385,2460.1,2459.6,0.29069632]
[1725499928797,1.02385,2460.1,2459.7,0.5464215]
[1725499929105,1.02385,2460.1,2459.6,0.29069632]
[1725499929303,1.02385,2460.1,2459.7,0.54643412]
[1725499929508,1.02385,2460.1,2459.6,0.29069632]
[1725499929709,1.02385,2460.1,2459.7,0.5464537]
[1725499929912,1.02385,2460.1,2459.6,0.29069632]
[1725499930104,1.02385,2460.1,2459.7,0.54645619]
[1725499930306,1.02385,2460.1,2459.8,0.54645619]
[1725499930505,1.02385,2460.1,2459.6,1.35808567]
[1725499930809,1.02385,2460.1,2459.7,0.54638621]
[1725499931005,1.02385,2460.1,2459.8,0.54638621]
[1725499931207,0.3861,2460.2,2460.0,3.16]
[1725499931410,0.11,2460.6,2460.1,0.83078593]
[1725499931411,0.64,2460.5,2460.1,0.83078593]
[1725499931612,0.3915,2460.3,2460.1,0.83078593]
[1725499931812,0.3915,2460.3,2460.2,0.54621133]
[1725499932313,0.3915,2460.3,2460.2,0.54616773]
[1725499932520,0.3915,2460.3,2460.2,0.83070773]
[1725499932705,0.3915,2460.3,2460.2,0.54616773]
[1725499933408,0.3915,2460.3,2460.2,0.83070773]
[1725499933606,0.00609632,2460.7,2460.2,14.83835708]
[1725499933807,0.00609632,2460.7,2460.1,5.52024402]
[1725499933808,0.00609632,2460.7,2460.6,0.28449]
[1725499934010,0.00609632,2460.7,2460.6,0.83065773]
[1725499935805,0.00609632,2460.7,2460.6,0.28449]
[1725499936006,0.00609632,2460.7,2460.6,0.8305224]
[1725499936810,0.00609632,2460.7,2460.6,0.5460324]
[1725499937017,0.00609632,2460.7,2460.6,0.83070484]
[1725499937817,0.00609632,2460.7,2460.6,4.89470484]
[1725499938113,0.00609632,2460.7,2460.6,0.54621484]
[1725499938316,0.00609632,2460.7,2460.5,0.3933]
[1725499938619,0.00609632,2460.7,2460.6,0.28449]
[1725499939817,0.00609632,2460.7,2460.6,0.83073066]
[1725499940218,0.095,2461.2,2461.1,0.28443]
[1725499940421,0.28439,2461.5,2461.2,0.28442]
[1725499940616,0.7493,2461.6,2461.2,0.28442]
[1725499940811,0.7493,2461.6,2461.3,0.28441]
[1725499941135,0.3837,2461.6,2461.5,0.28439]
[1725499941415,0.00605411,2461.8,2461.5,0.28439]
[1725499943016,0.00605411,2461.8,2461.3,6.37389632]
[1725499943017,0.00605411,2461.8,2461.6,0.28438]
[1725499943617,0.00605411,2461.8,2461.5,0.28438]
[1725499944015,0.00605411,2461.8,2461.6,0.28438]
[1725499944215,0.00605411,2461.8,2461.5,0.28438]
[1725499944719,0.00605411,2461.8,2461.4,0.3752]
[1725499944720,0.00605411,2461.8,2461.4,0.65959]
[1725499944922,0.00605411,2461.8,2461.4,0.6596]
[1725499945427,0.00605411,2461.8,2461.4,0.3752]
[1725499945722,0.00605411,2461.8,2461.3,6.65830632]
[1725499945723,0.28438,2461.6,2461.3,0.00609632]
[1725499945921,1.04499,2461.5,2461.3,0.00609632]
[1725499946118,0.3749,2461.4,2461.3,0.00609632]
[1725499946518,4.4381,2461.4,2461.3,0.00609632]
[1725499946723,4.7225,2461.4,2461.3,0.00609632]
[1725499946921,4.4381,2461.4,2461.3,0.00609632]
[1725499947122,4.7225,2461.4,2461.3,0.00609632]
[1725499948223,10.7225,2461.4,2461.3,0.00609632]
[1725499949422,4.7225,2461.4,2461.3,0.00609632]
[1725499950124,0.3749,2461.4,2461.3,0.00609632]
[1725499950826,0.6593,2461.4,2461.3,0.00609632]
[1725499954933,4.7225,2461.4,2461.3,0.00609632]
[1725499957028,14.59351,2461.4,2461.3,0.00609632]
[1725499962833,13.8825,2461.4,2461.3,0.00609632]
[1725499964432,7.8825,2461.4,2461.3,0.00609632]
[1725499967945,8.59351,2461.4,2461.3,0.00609632]
[1725499968731,14.59351,2461.4,2461.3,0.00609632]
[1725499969942,10.7225,2461.4,2461.3,0.00609632]
[1725499970549,4.7225,2461.4,2461.3,0.00609632]
[1725499973152,5.43351,2461.4,2461.3,0.00609632]
[1725499974248,8.59351,2461.4,2461.3,0.00609632]
[1725499974551,14.59351,2461.4,2461.3,0.00609632]
[1725499976348,0.71118,2460.8,2460.6,0.095]
[1725499976548,0.28449,2460.6,2460.5,0.37]
[1725499978047,3.2078,2460.7,2460.5,0.37]
[1725499978449,0.28446,2460.9,2460.5,0.37]
[1725499980655,6.726,2461.0,2460.5,0.6545]
[1725499980656,6.65225,2461.0,2460.5,0.6545]
[1725499980953,0.28446,2460.9,2460.5,0.6545]
[1725499981154,0.28446,2460.9,2460.5,0.37]
[1725499981354,0.28446,2460.9,2460.5,0.6545]
[1725499982552,6.3678,2461.0,2460.6,0.28448]